bitfinex/quotes_ETHUSD_20250929
["timestamp","ask_amount","ask_price","bid_price","bid_amount"]
[1759145234692,3.0,4112.7,4112.6,2.43155181]
[1759145234872,0.1208,4112.9,4112.7,2.43149269]
[1759145235198,6.071,4112.8,4112.7,2.90059269]
[1759145235570,10.89668254,4112.8,4112.2,0.1208]
[1759145235890,4.82568254,4112.4,4112.2,2.43178833]
[1759145236098,4.82568254,4112.4,4112.3,2.4317292]
[1759145236986,4.94648254,4112.4,4112.3,2.4317292]
[1759145237585,3.071,4112.4,4112.3,3.1328292]
[1759145237768,3.071,4112.4,4112.3,2.6637292]
[1759145237967,3.071,4112.4,4112.3,2.4317292]
[1759145238397,7.89668254,4112.4,4112.3,2.4317292]
[1759145239401,7.89668254,4112.4,4112.3,16.9317292]
[1759145242277,7.89668254,4112.4,4112.3,2.4317292]
[1759145242705,7.89668254,4112.4,4112.3,16.9317292]
[1759145245805,7.89668254,4112.4,4112.3,2.4317292]
[1759145246381,7.89668254,4112.4,4112.3,14.5]
[1759145246704,7.89668254,4112.4,4112.3,16.9317292]
[1759145247376,7.89668254,4112.4,4112.1,2.43383538]
[1759145247377,11.68635079,4112.4,4112.1,0.002]
[1759145247580,3.4314,4112.3,4112.1,0.002]
[1759145247918,3.07,4112.2,4112.1,0.002]
[1759145248126,3.5014,4112.2,4112.1,0.002]
[1759145248310,4.94504693,4112.2,4112.1,0.002]
[1759145250237,10.53325204,4112.2,4112.1,0.002]
[1759145251243,15.22204037,4112.2,4112.1,0.002]
[1759145251443,12.78945204,4112.2,4112.1,0.002]
[1759145252243,12.75375204,4112.2,4112.1,0.002]
[1759145252626,13.13523869,4112.2,4112.1,0.002]
[1759145253429,15.56702702,4112.2,4112.1,0.002]
[1759145253629,15.60272702,4112.2,4112.1,0.002]
[1759145253833,13.17093869,4112.2,4112.1,0.002]
[1759145254631,15.60272702,4112.2,4112.1,0.002]
[1759145256433,13.17093869,4112.2,4112.1,0.002]
[1759145256637,13.13523869,4112.2,4112.1,0.002]
[1759145257007,12.73953869,4112.2,4112.1,0.002]
[1759145258033,3.29013358,4112.2,4112.1,0.002]
[1759145258365,4.91648665,4112.2,4112.1,0.7031]
[1759145259119,0.38148665,4112.2,4112.1,0.7031]
[1759145259425,3.57228665,4112.2,4112.1,3.13494747]
[1759145261346,3.57228665,4112.2,4112.1,0.7031]
[1759145261846,3.57228665,4112.2,4112.1,17.63494747]
[1759145263124,3.1908,4112.2,4112.1,17.63494747]
[1759145264655,0.1208,4112.2,4112.1,19.64163752]
[1759145264854,0.001,4112.4,4112.3,2.4317292]
[1759145265165,3.071,4112.4,4112.3,2.4317292]
[1759145265368,3.071,4112.4,4112.3,3.1067292]
[1759145267371,0.001,4112.4,4112.3,3.1067292]
[1759145267669,3.071,4112.4,4112.3,3.1067292]
[1759145268539,3.071,4112.4,4112.3,17.6067292]
[1759145268738,0.001,4112.4,4112.3,17.6067292]
[1759145268957,3.071,4112.4,4112.3,16.9317292]
[1759145269138,0.001,4112.4,4112.3,17.1710292]
[1759145269361,3.071,4112.4,4112.3,17.6067292]
[1759145271742,4.536,4112.4,4112.3,17.6067292]
[1759145271942,3.071,4112.4,4112.3,17.6067292]
[1759145275673,3.071,4112.4,4112.3,17.1710292]
[1759145275976,3.07,4112.4,4112.3,17.6067292]
[1759145276275,3.0692,4112.4,4112.3,17.6067292]
[1759145279876,3.0692,4112.4,4112.3,17.1710292]
[1759145280082,3.0692,4112.4,4112.3,16.9317292]
[1759145280748,3.0692,4112.4,4112.3,17.1710292]
[1759145280945,0.0002,4112.4,4112.3,17.6067292]
[1759145281148,3.0692,4112.4,4112.3,18.50511993]
[1759145281780,3.0692,4112.4,4112.3,15.63769073]
[1759145281963,3.0692,4112.4,4112.3,14.5]
[1759145282382,3.0692,4112.4,4112.1,0.002]
[1759145282383,3.0692,4112.4,4112.2,2.43178833]
[1759145282686,3.0692,4112.4,4112.3,2.4317292]
[1759145282888,3.0692,4112.4,4112.3,17.6067292]
[1759145284163,3.0692,4112.4,4112.3,17.1710292]
[1759145284393,3.0692,4112.4,4112.3,16.9317292]
[1759145285758,3.0692,4112.4,4112.3,17.1710292]
[1759145285980,3.0692,4112.4,4112.3,16.9317292]
[1759145286185,3.0692,4112.4,4112.3,17.6067292]
[1759145287316,3.0692,4112.4,4112.3,16.9317292]
[1759145287520,3.0692,4112.4,4112.1,2.43382143]
[1759145287682,3.0692,4112.4,4112.2,2.43178833]
[1759145288202,3.0692,4112.4,4112.3,16.9317292]
[1759145291028,3.0692,4112.4,4112.3,17.6162292]
[1759145294638,3.0682,4112.4,4112.3,19.62123095]
[1759145296008,0.0002,4112.4,4112.3,19.62123095]
[1759145296206,0.0002,4112.4,4112.3,19.74203095]
[1759145301307,3.0674,4112.6,4112.5,2.43161094]
[1759145301823,3.0674,4112.6,4112.5,3.10611094]
[1759145302024,3.0674,4112.6,4112.5,17.60611094]
[1759145302345,0.001,4112.7,4112.6,2.43155181]
[1759145302534,3.068,4112.7,4112.6,3.13036732]
[1759145302917,0.001,4112.7,4112.6,3.13036732]
[1759145303546,0.001,4112.7,4112.6,3.10605181]
[1759145305838,0.001,4112.7,4112.6,3.20356914]
[1759145306042,0.001,4112.7,4112.6,18.58586715]
[1759145309219,0.001,4112.7,4112.6,16.93155181]
[1759145313255,0.001,4112.7,4112.6,17.60605181]
[1759145315545,0.001,4112.7,4112.6,17.17055181]
[1759145315750,0.001,4112.7,4112.6,16.93155181]
[1759145317166,0.001,4112.7,4112.5,0.1208]
[1759145317167,5.37923933,4112.7,4112.1,0.002]
[1759145317345,3.066,4112.6,4112.5,2.43161094]
[1759145318830,3.066,4112.6,4112.5,16.93161094]
[1759145321767,0.001,4112.7,4112.6,2.43155181]
[1759145321966,0.001,4112.7,4112.6,3.15806732]
[1759145322669,0.001,4112.7,4112.6,3.13375181]
[1759145324650,0.001,4112.7,4112.6,17.63375181]
[1759145326278,0.0002,4112.7,4112.6,17.63375181]
[1759145326456,0.0002,4112.7,4112.6,20.15191406]
[1759145328244,0.0002,4112.7,4112.6,20.24942759]
[1759145333255,0.0002,4112.7,4112.6,19.77532759]
[1759145333489,0.0002,4112.7,4112.6,20.24942759]
[1759145338371,0.0002,4112.7,4112.6,19.54722759]
[1759145338581,0.0002,4112.7,4112.6,17.02906534]
[1759145338758,0.0002,4112.7,4112.6,17.03106534]
[1759145340285,0.0002,4112.7,4112.6,17.25916534]
[1759145342871,0.0002,4112.7,4112.6,17.03106534]
[1759145344594,0.0002,4112.7,4112.6,17.73326534]
[1759145344787,0.0002,4112.7,4112.6,20.25142759]
[1759145345910,0.001,4113.3,4112.6,20.25142759]
[1759145345911,0.001,4113.6,4113.5,2.43101981]
[1759145346612,0.001,4113.6,4113.5,16.93101981]
[1759145350241,0.0357,4115.2,4113.5,14.5]
[1759145350400,3.063,4115.2,4114.5,2.43042897]
[1759145350606,0.3957,4115.0,4114.5,2.43042897]
[1759145350817,0.4314,4115.0,4114.5,16.93042897]
[1759145351016,0.0357,4114.9,4114.5,16.93042897]
[1759145351231,0.0357,4114.9,4114.5,17.66149526]
[1759145351232,2.9992,4114.6,4114.5,17.66149526]
[1759145351839,3.4306,4114.6,4114.5,16.93042897]
[1759145354599,2.9992,4114.6,4114.5,16.93042897]
[1759145355216,7.19416393,4114.6,4114.5,16.93042897]
[1759145355449,7.62556393,4114.6,4114.5,16.93042897]
[1759145355855,7.62656393,4114.6,4114.5,16.93042897]
[1759145356528,7.62656393,4114.6,4114.5,14.5]
[1759145357325,7.62656393,4114.6,4114.5,16.93042897]
[1759145357556,7.19416393,4114.6,4114.5,16.93042897]
[1759145358758,7.19416393,4114.6,4114.5,2.43042897]
[1759145359825,7.58986393,4114.6,4114.5,2.43042897]
[1759145361677,7.19416393,4114.6,4114.5,2.43042897]
[1759145362532,4.13216393,4114.6,4114.5,2.43042897]
[1759145362734,6.0622,4114.6,4114.5,16.93042897]
[1759145365768,6.0622,4114.6,4114.5,2.43042897]
[1759145366274,6.0622,4114.6,4114.5,16.93042897]
[1759145366480,6.183,4114.6,4114.5,16.93042897]
[1759145368570,6.183,4114.6,4114.5,17.60662897]
[1759145369371,6.183,4114.6,4114.5,3.10662897]
[1759145369969,6.183,4114.6,4114.5,17.60662897]
[1759145370360,6.183,4114.6,4114.5,17.16742897]
[1759145370668,6.183,4114.6,4114.5,17.60662897]
[1759145372539,7.646,4114.6,4114.5,16.93042897]
[1759145372740,6.183,4114.6,4114.5,16.93042897]
[1759145373773,6.183,4114.6,4114.5,16.93242897]
[1759145376341,6.1822,4114.6,4114.5,16.93242897]
[1759145381560,6.1822,4114.6,4114.5,17.60832897]
[1759145382062,6.1822,4114.6,4114.5,3.10832897]
[1759145382680,6.1822,4114.6,4114.5,17.60832897]
[1759145383293,6.1822,4114.6,4114.5,16.93242897]
[1759145385596,6.1822,4114.6,4114.5,2.43242897]
[1759145386096,6.1822,4114.6,4114.5,16.93242897]
[1759145386300,6.1822,4114.6,4114.5,17.60832897]
[1759145387189,6.1822,4114.6,4114.5,17.16562897]
[1759145387572,6.1822,4114.6,4114.5,16.93242897]
[1759145389205,6.1822,4114.6,4114.5,2.43242897]
[1759145389702,6.1822,4114.6,4114.5,16.93242897]
[1759145390600,6.1822,4114.6,4114.5,14.502]
[1759145390800,6.1822,4114.6,4114.5,16.93242897]
[1759145398921,6.1822,4114.6,4114.5,14.502]
[1759145399124,7.23182,4114.6,4114.5,0.002]
[1759145399925,7.19612,4114.6,4114.5,0.002]
[1759145400427,6.80042,4114.6,4114.5,0.002]
[1759145401226,6.79962,4114.6,4114.5,0.002]
[1759145401807,7.23102,4114.6,4114.5,0.002]
[1759145402206,10.23102,4114.6,4114.5,0.002]
[1759145402410,9.79962,4114.6,4114.5,0.002]
[1759145402815,10.18088336,4114.6,4114.5,0.002]
[1759145403031,10.57658336,4114.6,4114.5,0.002]
[1759145403834,10.18088336,4114.6,4114.5,0.002]
[1759145405145,10.57658336,4114.6,4114.5,0.002]
[1759145405511,10.18088336,4114.6,4114.5,0.002]
[1759145406271,10.61228336,4114.6,4114.5,0.002]
[1759145406443,13.04265326,4114.6,4114.5,0.002]
[1759145406943,10.61228336,4114.6,4114.5,0.002]
[1759145407250,10.18088336,4114.6,4114.5,0.002]
[1759145408054,10.18088336,4114.6,4114.5,0.2352]
[1759145408351,10.18088336,4114.6,4114.5,0.6779]
[1759145408912,10.17888336,4114.6,4114.5,0.6779]
[1759145409750,7.11888336,4114.6,4114.5,0.6779]
[1759145410061,10.17888336,4114.6,4114.5,0.6779]
[1759145410270,10.17888336,4114.6,4114.5,0.2352]
[1759145411026,10.17888336,4114.6,4114.5,0.002]
[1759145411945,10.17888336,4114.6,4114.5,0.2516]
[1759145412141,10.17788336,4114.6,4114.5,0.2516]
[1759145412347,9.55966336,4114.6,4114.5,0.7197]
[1759145412965,9.55966336,4114.6,4114.5,0.2516]
[1759145413165,9.55966336,4114.6,4114.5,0.002]
[1759145414944,9.55966336,4114.6,4114.5,0.6829]
[1759145416069,9.55966336,4114.6,4114.5,0.2343]
[1759145416377,9.55966336,4114.6,4114.5,0.002]
[1759145417449,9.55966336,4114.6,4114.5,0.2343]
[1759145418272,6.50066336,4114.6,4114.5,0.002]
[1759145418450,6.55966336,4114.6,4114.5,3.11332897]
[1759145418648,6.1784,4114.6,4114.5,3.11332897]
[1759145422274,6.1784,4114.6,4114.5,17.61332897]
[1759145423783,6.1784,4114.6,4114.5,14.502]
[1759145423971,6.1784,4114.6,4114.5,0.002]
[1759145424335,7.97501399,4114.6,4114.5,0.002]
[1759145426083,7.97421399,4114.6,4114.5,0.002]
[1759145426454,13.55355388,4114.6,4114.5,0.002]
[1759145428278,14.28483224,4114.6,4114.5,0.002]
[1759145428478,19.53983224,4114.6,4114.5,0.002]
[1759145428854,21.97020214,4114.6,4114.5,0.002]
[1759145431106,22.28473378,4114.6,4114.5,0.002]
[1759145432779,22.66602621,4114.6,4114.5,0.002]
[1759145434282,26.73659864,4114.6,4114.5,0.002]
[1759145435529,7.68566527,4114.1,4114.0,0.002]
[1759145435681,28.77080262,4114.1,4114.0,0.002]
[1759145435885,18.97112262,4114.1,4114.0,0.002]
[1759145436339,17.34698916,4114.1,4114.0,0.002]
[1759145437882,4.68590162,4113.7,4113.6,0.002]
[1759145438218,16.98830796,4113.7,4113.6,0.002]
[1759145438418,17.02400796,4113.7,4113.6,0.002]
[1759145438594,17.25630796,4113.7,4113.6,0.002]
[1759145439420,7.68607891,4113.4,4113.3,0.002]
[1759145439613,15.91049888,4113.4,4113.3,0.002]
[1759145439820,16.34189888,4113.4,4113.3,0.002]
[1759145440020,16.34189888,4113.4,4112.8,0.002]
[1759145440021,0.792,4112.9,4112.8,0.002]
[1759145440218,15.56933061,4112.9,4112.8,0.002]
[1759145440383,13.13795616,4112.9,4112.8,0.002]
[1759145440587,14.00605735,4112.9,4112.8,0.002]
[1759145440784,10.32805616,4112.9,4112.8,0.6852]
[1759145441017,13.38605616,4112.9,4112.8,0.6852]
[1759145442824,13.76745957,4112.9,4112.8,0.6852]
[1759145443226,3.2481,4112.9,4112.8,3.11663357]
[1759145443520,11.13105616,4112.9,4112.8,0.6852]
[1759145443693,11.13105616,4112.9,4112.8,3.11663357]
[1759145444710,11.13105616,4112.9,4112.8,17.61663357]
[1759145445317,8.07305616,4112.9,4112.8,17.61663357]
[1759145445529,11.13105616,4112.9,4112.8,17.61663357]
[1759145447502,11.13105616,4112.9,4112.8,15.1852]
[1759145448333,12.28230154,4112.9,4112.8,0.002]
[1759145451051,12.28150154,4112.9,4112.8,0.002]
[1759145452110,9.22350154,4112.9,4112.8,0.002]
[1759145452315,11.13025616,4112.9,4112.8,0.6852]
[1759145454216,11.13025616,4112.9,4112.8,0.002]
[1759145458647,13.56163061,4112.9,4112.8,0.002]
[1759145459060,15.81663061,4112.9,4112.8,0.002]
[1759145459270,16.24803061,4112.9,4112.8,0.002]
[1759145462676,7.68649269,4112.7,4112.6,0.002]
[1759145462881,10.74449269,4112.7,4112.6,0.002]
[1759145463280,11.14019269,4112.7,4112.6,0.002]
[1759145463484,9.5115671,4112.5,4112.4,0.002]
[1759145463647,14.42256917,4112.5,4112.4,0.002]
[1759145464187,14.52013003,4112.5,4112.4,0.002]
[1759145465282,14.52013003,4112.5,4111.6,0.002]
[1759145465283,2.43196575,4111.9,4111.6,0.002]
[1759145465449,15.56992191,4111.9,4111.6,0.002]
[1759145465985,16.04901865,4111.9,4111.6,0.002]
[1759145466167,16.86073176,4111.9,4111.6,0.002]
[1759145466400,21.68568792,4111.9,4111.6,0.002]
[1759145466576,21.64998792,4111.9,4111.6,0.002]
[1759145466953,0.792,4111.7,4111.6,0.002]
[1759145467150,10.74508405,4111.7,4111.6,0.002]
[1759145467484,12.59808612,4111.7,4111.6,0.002]
[1759145469162,9.54008612,4111.7,4111.6,0.002]
[1759145469491,12.59808612,4111.7,4111.6,0.002]
[1759145471175,12.69567102,4111.7,4111.6,0.002]
[1759145472194,10.26358697,4111.7,4111.6,0.002]
[1759145472400,12.69567102,4111.7,4111.6,0.002]
[1759145473685,13.09137102,4111.7,4111.6,0.002]
[1759145473922,6.2241432,4111.6,4111.4,0.002]
[1759145474087,13.01401247,4111.6,4111.4,0.002]
[1759145474588,13.01401247,4111.6,4110.5,2.43279093]
[1759145474589,0.792,4110.8,4110.4,0.2253]
[1759145474889,15.57063186,4110.7,4110.4,0.2253]
[1759145475087,20.39558802,4110.7,4110.3,0.002]
[1759145475685,20.51901555,4110.7,4110.3,0.2273]
[1759145475892,15.69405939,4110.7,4110.3,0.002]
[1759145476093,15.69325939,4110.7,4110.4,0.2253]
[1759145476288,17.39996146,4110.7,4110.4,0.2253]
[1759145477054,14.96728576,4110.7,4110.6,0.6728]
[1759145477260,17.39996146,4110.7,4110.6,0.6728]
[1759145477588,7.94838369,4110.7,4110.6,3.10553488]
[1759145477784,6.058,4110.7,4110.6,3.10553488]
[1759145479187,10.88295616,4110.7,4110.6,3.10553488]
[1759145479496,10.88295616,4110.7,4110.6,0.6728]
[1759145479665,10.88295616,4110.7,4110.6,15.1728]
[1759145480269,10.88295616,4110.7,4110.6,17.60553488]
[1759145480670,10.88295616,4110.7,4110.6,3.10553488]
[1759145481076,10.88295616,4110.7,4110.6,0.6728]
[1759145481694,7.82495616,4110.7,4110.6,0.6728]
[1759145481893,10.88295616,4110.7,4110.6,0.6728]
[1759145482308,17.08664022,4110.7,4110.6,0.002]
[1759145482600,14.65396452,4110.7,4110.6,0.002]
[1759145483003,14.65396452,4110.7,4110.6,0.2273]
[1759145483406,14.65396452,4110.7,4110.6,0.6728]
[1759145484272,3.0,4110.7,4110.6,0.6728]
[1759145484528,3.058,4110.7,4110.6,3.10553488]
[1759145486166,4.82495616,4110.8,4110.7,2.4326757]
[1759145486371,7.88295616,4110.8,4110.7,3.1034757]
[1759145490505,7.88295616,4110.8,4110.7,0.6708]
[1759145490706,7.88295616,4110.8,4110.6,14.502]
[1759145490707,3.1216,4110.7,4110.6,0.002]
[1759145491004,4.82495616,4110.7,4110.6,0.002]
[1759145491214,10.88195616,4110.7,4110.6,0.002]
[1759145491713,10.88195616,4110.7,4110.6,3.10553488]
[1759145493520,6.057,4110.7,4110.6,3.10553488]
[1759145494818,6.057,4110.7,4110.6,17.60553488]
[1759145497933,6.057,4110.7,4110.6,3.10553488]
[1759145498300,6.057,4110.7,4110.6,0.002]
[1759145498532,6.057,4110.7,4110.6,2.43473488]
[1759145499886,6.057,4110.7,4110.6,0.002]
[1759145500101,7.2599133,4110.7,4110.6,0.002]
[1759145500333,7.2609133,4110.7,4110.6,0.002]
[1759145501025,7.2601133,4110.7,4110.6,0.002]
[1759145501332,7.2601133,4110.7,4110.6,2.43473488]
[1759145501492,6.0572,4110.7,4110.6,2.43473488]
[1759145501895,6.0572,4110.7,4110.6,3.13663488]
[1759145502291,6.0572,4110.7,4110.6,0.2368]
[1759145502524,6.0572,4110.7,4110.6,0.002]
[1759145502836,6.0572,4110.7,4110.6,2.43473488]
[1759145503035,3.058,4110.7,4110.6,2.43473488]
[1759145503200,3.058,4110.7,4110.6,3.13663488]
[1759145504397,3.058,4110.7,4110.6,2.43473488]
[1759145508738,3.058,4110.7,4110.6,2.66953488]
[1759145510230,3.058,4110.7,4110.6,3.13663488]
[1759145510431,3.058,4110.7,4110.6,2.43473488]
[1759145510637,3.058,4110.7,4110.6,3.13663488]
[1759145511843,3.058,4110.7,4110.6,2.43473488]
[1759145513948,3.058,4110.7,4110.6,0.002]
[1759145514454,3.058,4110.7,4110.6,2.43473488]
[1759145515665,3.058,4110.7,4110.6,2.66953488]
[1759145515843,3.058,4110.7,4110.6,3.13663488]
[1759145519008,3.057,4110.7,4110.6,3.13663488]
[1759145519158,3.057,4110.7,4110.6,3.69621644]
[1759145519466,3.057,4110.7,4110.6,18.19621644]
[1759145520675,3.057,4110.7,4110.6,14.502]
[1759145520878,3.057,4110.7,4110.6,2.43473488]
[1759145521460,3.057,4110.7,4110.6,2.66953488]
[1759145524191,3.057,4110.7,4110.6,3.13663488]
[1759145524806,3.057,4110.7,4110.6,17.63663488]
[1759145527307,3.0562,4110.7,4110.6,19.64378283]
[1759145527660,0.0002,4110.7,4110.6,19.76538283]
[1759145528200,0.0002,4110.7,4110.6,5.26538283]
[1759145528383,0.0002,4110.7,4110.6,3.25823488]
[1759145528576,0.0002,4110.7,4110.6,17.75823488]
[1759145530508,0.0002,4110.7,4110.6,20.81323488]
[1759145535439,0.0002,4110.7,4110.6,23.81323488]
[1759145535733,0.0002,4110.7,4110.6,23.9107817]
[1759145535905,0.0002,4110.7,4110.6,26.42894395]
[1759145537033,0.0002,4110.7,4110.6,27.22094395]
[1759145539228,0.0002,4110.7,4110.6,27.09934395]
[1759145539533,0.0002,4110.7,4110.6,27.72001611]
[1759145539732,1e-08,4111.9,4111.8,2.4320249]
[1759145539913,1e-08,4111.9,4111.8,5.51034514]
[1759145540100,1e-08,4111.9,4111.8,6.1546249]
[1759145540306,1e-08,4111.9,4111.8,20.6546249]
[1759145542036,1e-08,4111.9,4111.8,23.6546249]
[1759145542335,1e-08,4111.9,4111.8,25.95012984]
[1759145543136,1e-08,4111.9,4111.8,26.74212984]
[1759145544055,0.001,4113.4,4113.3,2.43113801]
[1759145544259,0.001,4113.4,4113.3,5.50944939]
[1759145544553,0.001,4113.4,4113.3,6.15373801]
[1759145544853,0.001,4113.4,4113.3,7.01223312]
[1759145545682,0.001,4113.4,4113.3,21.51223312]
[1759145547380,0.001,4113.4,4113.3,20.84363312]
[1759145547563,0.001,4113.4,4113.3,17.78963312]
[1759145547768,0.001,4113.4,4113.3,20.84263312]
[1759145547967,0.001,4113.4,4113.3,16.93113801]
[1759145548162,0.4324,4113.4,4113.3,16.93113801]
[1759145548476,0.001,4113.4,4113.3,16.93113801]
[1759145549240,0.4324,4113.4,4113.3,16.93113801]
[1759145549573,0.001,4113.4,4113.3,16.93113801]
[1759145549773,0.001,4113.4,4113.3,19.29347312]
[1759145550857,0.0002,4113.4,4113.3,19.29347312]
[1759145551775,0.0002,4113.4,4113.3,22.34647312]
[1759145552876,0.0002,4113.4,4113.3,19.29347312]
[1759145553082,0.0002,4113.4,4113.3,22.34647312]
[1759145554568,0.0002,4113.4,4113.3,20.53323801]
[1759145555281,0.0002,4113.4,4113.3,22.85371312]
[1759145555992,0.0002,4113.4,4113.3,22.42541312]
[1759145556194,0.0002,4113.4,4113.3,19.37241312]
[1759145556362,0.3959,4113.4,4113.3,20.10393801]
[1759145556559,0.3959,4113.4,4113.3,17.05193801]
[1759145556797,0.3959,4113.4,4113.3,20.10393801]
[1759145557480,0.0002,4113.4,4113.3,20.10393801]
[1759145557992,0.0002,4113.4,4113.3,17.05193801]
[1759145558292,0.3959,4113.4,4113.3,17.05193801]
[1759145558474,0.4316,4113.4,4113.3,17.05193801]
[1759145559195,0.3959,4113.4,4113.3,17.05193801]
[1759145559766,0.0002,4113.4,4113.3,17.05193801]
[1759145560696,0.0002,4113.4,4113.3,17.52563801]
[1759145560887,0.0002,4113.4,4113.3,22.42855312]
[1759145561088,0.0002,4113.4,4113.3,23.13955312]
[1759145562387,0.0002,4113.4,4113.3,26.13955312]
[1759145562586,1e-08,4114.1,4114.0,2.43072435]
[1759145562783,1e-08,4114.1,4114.0,5.48272435]
[1759145562987,1e-08,4114.1,4114.0,6.74442769]
[1759145563191,1e-08,4114.1,4114.0,21.24442769]
[1759145563614,1e-08,4114.1,4114.0,21.34189584]
[1759145564310,1e-08,4114.1,4114.0,18.28989584]
[1759145564511,1e-08,4114.1,4114.0,21.34189584]
[1759145567309,1e-08,4114.1,4114.0,25.13389584]
[1759145572433,1e-08,4114.1,4114.0,22.08189584]
[1759145572600,1e-08,4114.1,4114.0,20.57889584]
[1759145573035,4.82444039,4114.1,4114.0,17.1489925]
[1759145573328,5.25584039,4114.1,4114.0,20.10252435]
[1759145573501,5.25584039,4114.1,4114.0,17.05152435]
[1759145573700,5.25584039,4114.1,4114.0,20.10252435]
[1759145573909,5.25584039,4114.1,4114.0,17.05152435]
[1759145574152,5.78152443,4114.1,4114.0,16.93072435]
[1759145574317,5.25584039,4114.1,4114.0,16.93072435]
[1759145574524,5.23436509,4114.1,4114.0,16.93072435]
[1759145575132,0.1208,4114.4,4114.2,2.43060619]
[1759145575446,4.86114038,4114.6,4114.2,2.43060619]
[1759145575944,0.0002,4114.3,4114.2,2.43060619]
[1759145578340,0.0002,4114.3,4114.2,19.98160619]
[1759145578858,0.0002,4114.3,4114.2,16.93060619]
[1759145579021,0.0002,4114.3,4114.2,19.98160619]
[1759145580629,0.3744,4114.3,4114.2,19.98160619]
[1759145580963,0.4101,4114.3,4114.2,16.93060619]
[1759145581169,0.4101,4114.3,4114.2,19.98160619]
[1759145581664,5.23454038,4114.3,4114.2,16.93060619]
[1759145581966,5.23454038,4114.3,4113.7,2.43087385]
[1759145582169,0.4099,4114.2,4114.0,2.43072332]
[1759145582464,0.5307,4114.1,4114.0,16.93072332]
[1759145582667,0.3742,4114.1,4114.0,16.93072332]
[1759145582991,0.0002,4114.3,4114.2,2.43060619]
[1759145583377,0.4101,4114.3,4114.2,2.43060619]
[1759145583963,0.4101,4114.3,4114.0,14.5]
[1759145584165,0.0357,4114.2,4114.1,2.43062562]
[1759145584392,4.86014038,4114.2,4114.1,2.43066527]
[1759145584891,5.35823442,4114.2,4114.0,14.5]
[1759145585071,0.0357,4114.1,4114.0,14.5]
[1759145585946,5.32253442,4114.2,4114.0,14.502]
[1759145585947,4.82444038,4114.2,4114.0,14.502]
[1759145586153,0.1218,4114.3,4114.1,2.43066527]
[1759145586549,0.1218,4114.3,4114.2,2.43060619]
[1759145586874,0.001,4114.3,4114.2,2.43060619]
[1759145587047,0.001,4114.3,4114.2,3.02510619]
[1759145587250,0.001,4114.3,4114.2,2.55140619]
[1759145587444,0.001,4114.3,4114.2,4.82884573]
[1759145587645,0.3611,4114.3,4114.1,2.43065627]
[1759145587875,0.0367,4114.3,4114.2,2.43060619]
[1759145588368,0.3611,4114.3,4114.2,2.43060619]
[1759145588791,0.001,4114.3,4114.2,2.43060619]
[1759145589675,0.001,4114.3,4114.2,16.93060619]
[1759145590806,0.001,4114.3,4114.2,17.16390619]
[1759145590969,0.001,4114.3,4114.2,19.47304855]
[1759145591306,0.001,4114.3,4114.2,19.23974855]
[1759145591507,0.001,4114.3,4114.2,16.93060619]
[1759145592919,0.2121,4114.7,4114.2,16.93060619]
[1759145593122,0.0357,4114.6,4114.5,2.43042768]
[1759145593682,0.0357,4114.6,4114.4,2.4304732]
[1759145594006,0.0357,4114.6,4114.5,2.43042897]
[1759145594234,3.059,4114.8,4114.6,2.43035223]
[1759145594716,0.0357,4114.7,4114.6,2.43035223]
[1759145595215,0.0357,4114.7,4114.2,14.5]
[1759145595381,0.0357,4114.7,4114.6,2.4303699]
[1759145595718,0.0357,4114.7,4114.5,2.4304172]
[1759145596016,0.0357,4114.7,4114.4,2.43047194]
[1759145596603,3.059,4114.8,4114.2,14.5]
[1759145596911,0.2121,4114.6,4114.3,2.43054711]
[1759145597076,0.2121,4114.5,4114.3,2.43054711]
[1759145597712,0.2121,4114.5,4114.2,14.5]
[1759145598009,0.1764,4114.4,4114.0,0.002]
[1759145598215,0.1764,4114.4,4114.1,2.43061326]
[1759145598400,0.1764,4114.4,4114.2,14.5]
[1759145598607,0.0357,4114.5,4114.2,16.93060148]
[1759145598913,0.1764,4114.4,4114.2,14.5]
[1759145599734,0.1208,4114.6,4114.2,14.5]
[1759145599881,0.1208,4114.6,4114.3,2.43049791]
[1759145600919,0.12,4114.6,4114.3,2.43049791]
[1759145601994,0.12,4114.6,4114.0,0.002]
[1759145602196,0.12,4114.6,4114.5,2.43042897]
[1759145602780,0.12,4114.6,4114.4,2.43047596]
[1759145603018,3.055,4114.5,4114.4,2.43047596]
[1759145603517,0.001,4114.8,4114.5,2.43042897]
[1759145603813,0.001,4114.8,4114.7,2.43031083]
[1759145604327,0.001,4114.8,4114.7,3.11401083]
[1759145604708,0.001,4114.8,4114.7,3.23481083]
[1759145605010,0.001,4114.8,4114.7,5.75297308]
[1759145605953,0.001,4114.8,4114.7,3.23481083]
[1759145606122,0.001,4114.8,4114.7,17.73481083]
[1759145607849,0.001,4114.8,4114.7,17.05111083]
[1759145608548,0.001,4114.8,4114.7,17.73481083]
[1759145613281,0.001,4114.8,4114.7,17.05111083]
[1759145613428,0.001,4114.8,4114.7,17.73481083]
[1759145616036,0.001,4114.8,4114.7,17.05111083]
[1759145616794,0.001,4114.8,4114.7,16.93031083]
[1759145619695,0.001,4114.8,4114.7,17.62841083]
[1759145619841,0.001,4114.8,4114.7,19.64637116]
[1759145620174,0.001,4114.8,4114.7,19.76717116]
[1759145620784,0.001,4114.8,4114.7,19.06907116]
[1759145621084,0.001,4114.8,4114.7,19.76717116]
[1759145625069,0.001,4114.8,4114.7,19.64637116]
[1759145625903,0.0002,4114.8,4114.7,19.64637116]
[1759145633471,1e-08,4115.3,4115.2,2.43001555]
[1759145633674,1e-08,4115.3,4115.2,5.48101555]
[1759145633876,1e-08,4115.3,4115.2,6.17911555]
[1759145634108,1e-08,4115.3,4115.2,20.67911555]
[1759145634978,1e-08,4115.3,4115.2,20.79991555]
[1759145635178,1e-08,4115.3,4115.2,23.12291615]